Cogmind - Beta 14 @@@ ROGUE MODE // 2024.08.11 @ 01:05:19 Player: p0pp3t Result: Destroyed by H-61 Shepherd with Heavy Assault Cannon Performance ------------- Evolutions (2) 1000 Regions Visited (3) 600 Robots Destroyed (49) 245 Value Destroyed (2021) 2021 Prototype IDs (5) 100 Alien Tech Used (0) 0 Bonus (610) 610 TOTAL SCORE: 4576 Bonus ------- Pacifist 200 High Alert Combat Kills 410 Cogmind --------- Core Integrity 0/550 Matter 286/300 Energy 220/220 System Corruption 5% Temperature Cool (0) Movement Core (200) Ox3 Location -8/Materials Parts ------- > --- POWER (2) -------- Light Nuclear Core Light Nuclear Core > --- PROPULSION (3) --- (None) > --- UTILITY (4) ------ Improved Signal Interpreter Melee Analysis Suite Melee Analysis Suite > --- WEAPON (2) ------- Katana > --- INVENTORY (5) ---- Improved Ion Engine Small Storage Unit Improved EM Pulse Cannon Peak State ------------ > --- POWER ------------ Deuterium Engine Light Nuclear Core > --- PROPULSION ------- Advanced Treads Advanced Treads Advanced Treads > --- UTILITY ---------- Small Storage Unit Improved Signal Interpreter Improved Light Armor Plating Improved Light Armor Plating > --- WEAPON ----------- Improved EM Pulse Cannon Improved Grenade Launcher > --- INVENTORY -------- Improved Ion Engine Light Treads Improved Treads Improved EM Pulse Cannon Improved EM Pulse Cannon Assault Cannon [Rating: 33] Favorites ----------- Power Cooled Ion Engine Engine Cooled Ion Engine Power Core Light Nuclear Core Propulsion Improved Treads Treads Improved Treads Leg Carbon-fiber Leg Utility Small Storage Unit Device Shield Generator Storage Small Storage Unit Processor Improved Signal Interpreter Protection Light Armor Plating Weapon EM Pulse Gun Energy Gun EM Pulse Gun Energy Cannon Improved EM Pulse Cannon Ballistic Gun Assault Rifle Ballistic Cannon Assault Cannon Launcher Improved Grenade Launcher Slashing Weapon Katana Build | -11 -10 -9 -8 ------- Run | Yrd Mat Mat Mat Slots Evolved 4 | . . 2 2 Power 1 | . . 1 . Propulsion 1 | . . . 1 Utility 2 | . . 1 1 Weapon . | . . . . Parts Attached 65 | 7 5 6 47 Power 13 | 2 1 1 9 Engine 9 | 2 1 1 5 Core 4 | . . . 4 Reactor . | . . . . Propulsion 14 | 2 2 . 10 Treads 9 | . 2 . 7 Leg 5 | 2 . . 3 Wheel . | . . . . Hover . | . . . . Flight . | . . . . Utility 19 | 1 2 3 13 Device 4 | . . 1 3 Storage 2 | 1 1 . . Processor 3 | . . . 3 Hackware . | . . . . Protection 10 | . 1 2 7 Artifact . | . . . . Weapon 19 | 2 . 2 15 Energy Gun 3 | 1 . 1 1 Energy Cannon 4 | . . . 4 Ballistic Gun 3 | 1 . 1 1 Ballistic Cannon 3 | . . . 3 Launcher 5 | . . . 5 Special Weapon . | . . . . Impact Weapon . | . . . . Slashing Weapon 1 | . . . 1 Piercing Weapon . | . . . . Special Melee Weapon . | . . . . Unidentified Prototypes 1 | . 1 . . Parts Lost 25 | . 1 1 23 Power 6 | . 1 . 5 Propulsion 5 | . . . 5 Utility 10 | . . . 10 Weapon 4 | . . 1 3 Highest Loss Streak 6 | . 1 1 6 To Critical Strikes . | . . . . Average Slot Usage (%) 92 | . 86 99 91 Engine 15 | . 13 22 12 Core 2 | . . . 4 Treads 18 | . 19 22 16 Leg 5 | . 6 . 7 Device 6 | . . 11 5 Storage 9 | . 14 11 7 Processor 4 | . . . 7 Protection 10 | . 3 11 12 Energy Gun 7 | . 14 17 . Energy Cannon 2 | . . . 4 Ballistic Gun 4 | . 14 3 2 Ballistic Cannon 1 | . . . 3 Launcher 2 | . . . 3 Peak Build Rating 33 | 6 12 18 33 Average Rating 20 | 4 9 17 26 On Entrance 9 | . 6 12 18 Naked Turns . | . . . . Heaviest Build 47 | 14 20 31 47 Greatest Support 69 | 20 46 46 69 Greatest Overweight (x) 12 | . 5 . 12 Average Overweight (x) . | . . . . Largest Inventory Capacity 15 | 8 15 8 8 Average Capacity 7 | 6 8 8 7 Most Carried 8 | 1 8 8 8 Average Carried 5 | . 7 6 5 Final Capacity 8 | 8 8 8 5 Final Carried 8 | 1 8 7 3 Class Distribution -------------------- 99% | Mutant Dominant Class ---------------- Mutant | -10/Materials Mutant | -9/Materials Mutant | -8/Materials Resources | -11 -10 -9 -8 ----------- Run | Yrd Mat Mat Mat Matter Collected 1345 | 221 . 70 1054 Remotely . | . . . . Salvage Created 1731 | . . 484 1247 Parts 88 | . . 26 62 Haulers Intercepted . | . . . . Recyclers Shooed . | . . . . Parts Field Recycled . | . . . . Retrieved Matter . | . . . . Parts Self-Destructed . | . . . . Prevented . | . . . . Kills | -11 -10 -9 -8 ------- Run | Yrd Mat Mat Mat Combat Hostiles Destroyed 44 | . . 9 35 Melee 4 | . . . 4 Guns 7 | . . 6 1 Cannons 13 | . . . 13 AOE 19 | . . 3 16 Classes Destroyed 11 | . . 2 9 Worker 1 | . . . 1 Recycler 1 | . . . 1 Mechanic 1 | . . . 1 Operator 1 | . . . 1 Watcher 1 | . . . 1 Swarmer 3 | . . . 3 Grunt 22 | . . 3 19 Brawler 1 | . . . 1 Duelist 3 | . . . 3 Sentry 14 | . . 6 8 Hunter 1 | . . . 1 Best Kill Streak 13 | . . 4 13 Combat Bots Only 12 | . . 4 12 Max Kills in Single Turn 4 | . . 2 4 Gunslinging . | . . . . Exploded 4 | . . 2 4 Melee 1 | . . . 1 Uniques/NPCs Destroyed . | . . . . Combat | -11 -10 -9 -8 -------- Run | Yrd Mat Mat Mat Hostile Shots Fired 383 | . 3 61 319 Missed 110 | . 2 15 93 Damage Taken 4251 | . 18 525 3708 Core 632 | . . 76 556 Absorbed by Shields 647 | . . 200 447 Regen/Repaired (Parts) 49 | . . . 49 Core Remaining (%) 93 | 100 100 81 . Volleys Fired 117 | . 1 30 86 Largest 2 | . 2 2 2 Hottest 138 | . 60 85 138 Shots Fired 194 | . 2 54 138 Gun 85 | . 2 54 29 Cannon 80 | . . . 80 Launcher 29 | . . . 29 Special . | . . . . Kinetic 82 | . 1 8 73 Thermal . | . . . . Explosive 29 | . . . 29 Electromagnetic 83 | . 1 46 36 Robot Hit Streak 13 | . . 13 8 Robot Miss Streak 7 | . 2 4 7 Penetration Max . | . . . . Secondary Targets . | . . . . Shots Hit Robots 140 | . . 40 100 Core Hits 102 | . . 19 83 Critical Kills . | . . . . Critical Parts Destroyed . | . . . . Critical Strikes 2 | . . . 2 Blast 1 | . . . 1 Corrupt 1 | . . . 1 Melee Attacks 14 | . . . 14 Impact . | . . . . Slashing 14 | . . . 14 Piercing . | . . . . Sneak Attacks 1 | . . . 1 Combat Hostiles 1 | . . . 1 Follow-up Attacks . | . . . . Damage Inflicted 4913 | . . 770 4143 Guns 809 | . . 528 281 Cannons 1368 | . . . 1368 Explosions 2344 | . . 242 2102 Melee 378 | . . . 378 Ramming 14 | . . . 14 Kinetic 1079 | . . 67 1012 Thermal 308 | . . 242 66 Explosive 2036 | . . . 2036 Electromagnetic 1098 | . . 461 637 Impact . | . . . . Slashing 378 | . . . 378 Piercing . | . . . . Highest Corruption 5 | . . 1 5 Average Corruption 2 | . . 1 5 Corruption Purged . | . . . . Corruption Blocked . | . . . . Effects 13 | . . 5 8 Message Errors 5 | . . 2 3 Matter Fused 4 | . . 2 2 Data Loss (minor) 1 | . . . 1 Misfires 1 | . . 1 . Alerts 2 | . . . 2 Overload Shots . | . . . . Overflow Damage 60 | . . 10 50 Projectiles 3 | . . . 3 Explosions 56 | . . 10 46 Melee 1 | . . . 1 Knockbacks 19 | . . . 19 Impact 1 | . . . 1 Kinetic 16 | . . . 16 Secondary 2 | . . . 2 Self-Inflicted Damage 355 | . . 89 266 Shots 10 | . . 2 8 Rammed 3 | . . . 3 Targets Rammed 4 | . . . 4 Kicked . | . . . . Crushed 1 | . . . 1 Highest Temperature 477 | . 3 222 477 Average Temperature 111 | . 2 67 125 Received Heat Transfer 1600 | . 9 144 1447 Effects 6 | . . . 6 Shutdowns 3 | . . . 3 Interference 1 | . . . 1 Matter Decay 2 | . . . 2 Siege Activations . | . . . . Robots Corrupted 1 | . . . 1 Combat Hostiles 1 | . . . 1 Parts Fried 7 | . . 2 5 Impact Corruptions 1 | . . . 1 Robots Melted . | . . . . Combat Hostiles . | . . . . Parts Melted . | . . . . Heat Transferred 400 | . . 350 50 Parts Sabotaged . | . . . . Parts Stolen . | . . . . Parts Stripped . | . . . . Power Chain Reactions 4 | . . 3 1 Alert | -11 -10 -9 -8 ------- Run | Yrd Mat Mat Mat Peak Influence 1045 | . 25 296 1045 Initial 124 | . . . 124 Average 349 | . 2 71 600 Maximum Alert Level 3 | . . 1 3 Low Security (%) 47 | 100 100 87 10 Level 1 7 | . . 12 7 Level 2 24 | . . . 43 Level 3 20 | . . . 38 Level 4 . | . . . . Level 5 . | . . . . High Security . | . . . . Max Security . | . . . . Squads Dispatched 10 | . . 2 8 Investigation 3 | . . 1 2 Extermination . | . . . . Reinforcement 4 | . . 1 3 Assault . | . . . . Garrison 3 | . . . 3 Intercept . | . . . . Searches Triggered . | . . . . Construction Impeded 1 | . . . 1 Haulers Reinforced . | . . . . Active Scanning Responses . | . . . . Cargo Convoy Interrupts . | . . . . Stealth | -11 -10 -9 -8 --------- Run | Yrd Mat Mat Mat Distress Signals 2 | . . 1 1 Communications Jammed . | . . . . Distress Signals . | . . . . Times Spotted 83 | . 3 15 65 Peak Tracking Total 8 | . 2 6 8 Tactical Retreats 14 | . . 2 12 Traps | -11 -10 -9 -8 ------- Run | Yrd Mat Mat Mat Traps Triggered . | . . . . Indirectly . | . . . . Trap Hack Attempts . | . . . . Triggered . | . . . . Disarmed . | . . . . Reprogrammed . | . . . . Reused . | . . . . Traps Extracted . | . . . . Installed . | . . . . Triggered 1 | . . . 1 Machines | -11 -10 -9 -8 ---------- Run | Yrd Mat Mat Mat Machines Disabled 7 | . . 1 6 Max in Single Turn 2 | . . 1 2 Machines Repaired . | . . . . Machines Dismantled . | . . . . Machines Sabotaged . | . . . . Overloaded Fab Kills . | . . . . Hacking | -11 -10 -9 -8 --------- Run | Yrd Mat Mat Mat Machines Accessed 10 | . 2 5 3 Terminals 6 | . 2 3 1 Fabricators . | . . . . Repair Stations 1 | . . . 1 Recycling Units 2 | . . 1 1 Scanalyzers 1 | . . 1 . Garrison Access . | . . . . Total Hacks 36 | . 8 19 9 Successful 26 | . 5 14 7 Failed 10 | . 3 5 2 Catastrophic 2 | . . 2 . Database Lockouts . | . . . . Manual . | . . . . Terminals 19 | . 8 8 3 Fabricators . | . . . . Repair Stations 3 | . . . 3 Recycling Units 11 | . . 8 3 Scanalyzers 3 | . . 3 . Garrison Access . | . . . . Terminal Hacks 12 | . 5 5 2 Record 6 | . 3 3 . Prototype ID Bank 2 | . 1 . 1 Repair Station Index 1 | . . 1 . Dispatch Records 1 | . . . 1 Investigation Status 1 | . . 1 . Zone Layout 1 | . 1 . . Fabricator Hacks . | . . . . Repair Station Hacks 2 | . . . 2 Scan Component 1 | . . . 1 Repair 1 | . . . 1 Recycling Unit Hacks 10 | . . 7 3 Recycle Component 2 | . . 2 . Process 2 | . . 2 . Report Inventory 2 | . . 1 1 Retrieve Matter 2 | . . 1 1 Retrieve Components 2 | . . 1 1 Scanalyzer 2 | . . 2 . Insert Component 1 | . . 1 . Analyze 1 | . . 1 . Garrison Access Hacks . | . . . . Unauthorized Hacks . | . . . . Terminals . | . . . . Fabricators . | . . . . Repair Stations . | . . . . Recycling Units . | . . . . Scanalyzers . | . . . . Garrison Access . | . . . . Data Cores Recovered . | . . . . Used . | . . . . Hacking Detections 6 | . 2 2 2 Full Trace Events 4 | . 1 2 1 Feedback Events 1 | . . 1 . Corruption 1 | . . 1 . Feedback Blocked . | . . . . Robot Schematics Acquired . | . . . . Robots Built . | . . . . Authchips . | . . . . Time . | . . . . Total Robot Build Rating . | . . . . Part Schematics Acquired 1 | . . 1 . Parts Built . | . . . . Authchips . | . . . . Time . | . . . . Total Part Build Rating . | . . . . Parts Repaired 1 | . . . 1 Time 32 | . . . 32 Parts Recycled 2 | . . 2 . Recycled Matter 235 | . . 235 . Retrieved Matter 293 | . . 235 58 Retrieved Components 10 | . . . 10 Parts Scanalyzed 1 | . . 1 . Part Schematics Acquired 1 | . . 1 . Parts Damaged . | . . . . Bothacking | -11 -10 -9 -8 ------------ Run | Yrd Mat Mat Mat Used RIF Installer . | . . . . Robots Hacked . | . . . . Non-combat . | . . . . Combat . | . . . . Robot Hacks Applied . | . . . . Relay Couplers Released . | . . . . Fabnet Peak Effective % . | . . . . Robots Rewired . | . . . . Allies Hacked . | . . . . Hacks Repelled . | . . . . Allies | -11 -10 -9 -8 -------- Run | Yrd Mat Mat Mat Total Allies . | . . . . Largest Group . | . . . . Highest-Rated Group . | . . . . Highest-Rated Ally . | . . . . Total Orders . | . . . . Ally Attacks . | . . . . Total Damage . | . . . . Kills . | . . . . Allies Corrupted . | . . . . Allies Melted . | . . . . Intel | -11 -10 -9 -8 ------- Run | Yrd Mat Mat Mat Robot Analysis Total . | . . . . Derelict Logs Recovered . | . . . . Drone Launches . | . . . . Drone Recoveries . | . . . . Exploration | -11 -10 -9 -8 ------------- Run | Yrd Mat Mat Mat Turns Passed 2955 | 116 436 779 1624 Spaces Moved 1619 | 105 269 404 841 Core 36 | 28 7 . 1 Treads 1051 | . 187 404 460 Legs 532 | 77 75 . 380 Wheels . | . . . . Hover . | . . . . Flight . | . . . . Fastest Speed 50 | 50 120 160 120 Average Speed 144 | 101 152 160 139 Slowest Speed 650 | 120 300 160 650 Overloaded Moves . | . . . . Propulsion Burnouts . | . . . . Robots Hopped . | . . . . Cave-ins Triggered . | . . . . Exploration Rate (%) 30 | 4 39 30 49 Regions Visited 3 Branch Regions . Pre-discovered Areas . | . . . . Known Exits Taken . | . . . . Unknown Exits Taken 3 | 1 1 1 . Scrap Searched . | . . . . Spaces Dug 5 | . . . 5 Terrain Destroyed 190 | . . 13 177 Melee . | . . . . Projectile 4 | . . . 4 AOE 186 | . . 13 173 Terrain Rammed . | . . . . Walls Destroyed . | . . . . Machines Disabled . | . . . . Actions | -11 -10 -9 -8 --------- Run | Yrd Mat Mat Mat Total 2016 | 111 294 484 1127 Wait 122 | . . 38 84 Move 1616 | 104 268 403 841 Hop . | . . . . Pick Up 43 | . 11 5 27 Fast Attach 20 | 6 5 . 9 Attach 26 | . . 4 22 Detach 6 | . 1 . 5 Swap 20 | 1 1 2 16 Drop 28 | . 7 2 19 Fire 117 | . 1 30 86 Melee 14 | . . . 14 Ram . | . . . . Kick . | . . . . Crush 4 | . . . 4 Escape Stasis . | . . . . Rewire . | . . . . Trap . | . . . . Miscellaneous . | . . . . Route ------- -11/Scrapyard -10/Materials -9/Materials -8/Materials History --------- Turn | Location | Event 2 | -11/Scrapyard | Met Revision 17 12 | -11/Scrapyard | Discovered new exit (range 16) 117 | -11/Scrapyard | Entered Materials 306 | -10/Materials | Build established: Mutant 478 | -10/Materials | Discovered new exit (range 15) 553 | -10/Materials | Entered another Materials area 553 | -9/Materials | Evolved 2 slots: Power x1, Utility x1 1204 | -9/Materials | Discovered new exit (range 15) 1332 | -9/Materials | Entered another Materials area 1332 | -8/Materials | Evolved 2 slots: Propulsion x1, Utility x1 1439 | -8/Materials | Garrison activated, responded to threat 1460 | -8/Materials | Repaired Hvy. EM Pulse Gun 1563 | -8/Materials | Lost 5 parts (2n2u1w) 1572 | -8/Materials | Destroyed 12 combat bots 2067 | -8/Materials | Lost 3 parts (2p1u) 2618 | -8/Materials | Core integrity fell below 50% 2672 | -8/Materials | Lost 6 parts (2p1n2u1w) 2886 | -8/Materials | Core integrity fell below 20% 2956 | -8/Materials | Destroyed by H-61 Shepherd with Heavy Assault Cannon Last Messages --------------- 02846_ Acquired Lgt. Armor Plating. 02848_ K-01 Serf collects debris. 02879_ %|M%PZCACTKXRFWW#JYN 02887_ Carbon-fiber Leg destroyed. 02887_ Lgt. Armor Plating destroyed. 02887_ Nuclear Core blasted off. 02910_ System corrupted: IFF burst signal emitted. 02943_ Sneak attack on H-61 Shepherd. 02944_ H-61 Shepherd calls for reinforcements. 02944_ ALERT: Hostile activity reported, dispatching reinforcements to area. 02944_ Penetrated by Slug. 02944_ Knocked back. 02948_ Lgt. Armor Plating destroyed. 02948_ Knocked back. 02952_ Penetrated by Slug. 02952_ Knocked back. 02954_ Carbon-fiber Leg destroyed. 02954_ Knocked back. Map ----- +----------------------------------------------------+ | #??# # #?????????????????????????? | | #??# + #?????????????????????????? | | ##?# # """ #?????????????????????????? | | #### # """ #?????????????????????????? | | # ## # """ #?????????????????????????? | | ##/###### # #?????????????????????????? | | # ##########?????????????????????????? | | # #??????????????????????????????????? | | #??????????????????????????????????? | | " = #??????????????????????????????????? | | "" #??????????????????????????????????? | | #??????????????????????????????????? | | # #??????????????????????????????????? | | #] "" /#??????????????????????????????????? | | # "" ######?????????????????????????????? | | # """ ""## ##????????????????????????????? | | + Y # #????????????????????????????? | | # ## #####????????????????????????? | | # " ###################????????????????? | | # " #????????????????? | | # " #????????????????? | | # #????????????????? | | # #????????????????? | | # ##########H### #????????????????? | | # ####+####### # %#* #????????????????? | | # # #?### @# #????????????????? | | # # "" #???# % # #????????????????? | | # # "" #???# """ #% #????????????????? | | # # """ #???# """ ; #????????????????? | | # # *[ #???# """ ; #????????????????? | | # # """ = #???######## #????????????????? | | # # " " =! #??????????# #????????????????? | | # #[!"![ #??????????# #????????????????? | | # #[*]]= ! #??????????# #????????????????? | | # ##########??????????# #????????????????? | | # #???????????????????# #????????????????? | | # #???????????????????# #????????????????? | | # #???????????????????+ +????????????????? | | ? ????????????????????# #????????????????? | | ??????????????????????????? #????????????????? | | ??????????????????????????? ?????????????????? | | ??????????????????????????? ?????????????????? | | ???????????????????????????????????????????????? | | ???????????????????????????????????????????????? | | ???????????????????????????????????????????????? | | ???????????????????????????????????????????????? | | ???????????????????????????????????????????????? | | ???????????????????????????????????????????????? | | ???????????????????????????????????????????????? | | ???????????????????????????????????????????????? | +----------------------------------------------------+ Best States ------------- Heat Dissipation 31 Energy Generation 23 Energy Capacity 460 Matter Stores 300 Matter Capacity 300 Sight Range 16 Terrain Scan Density 10 ECM Strength 1 Armor Coverage 375 Evasion (%) 63 Melee Accuracy 10 Recoil Reduction 3 Item Schematics ----------------- Imp. Treads | -9/Materials | Scanalyzed Robot Schematics ------------------ None Fabricated ------------ Nothing Alien Tech Used ----------------- None Achievements -------------- Let's See Who's Tougher Troublemaker Challenges ------------ None Game ------ Seed AntimatterTrapClaw Manual? 0 Play Time 01:04:55 Cumulative 8.2 hours Start 2024.08.10 @ 23:53:12 End 2024.08.11 @ 01:05:19 Sessions 1 Manual Loads 0 Difficulty Rogue Special Mode None Game No. 7 Rogue 7 Adventurer 0 Explorer 0 Win Type - Total 0 Types 0/0/0/0/0/0/0/0/0 Lore% 2 Gallery% 8 Achievement% 9 Wizard Run 0 Options --------- Layout 1 ASCII 0 Keyboard 1 Movement Vi Keybinds 0 Fullscreen 1 Font 32/Tamsyn Map View 50x35 Zoom Use 0% Tactical HUD 1 Map Filters NONE Filters NONE Steam 1 RUN: 896e27ff-6174-4ce0-9575-a24e859e29f0